[Event "Titled Tuesday Blitz August 22 Late 2023"]
[White "Jakubowski, Krzysztof"]
[Black "Ghazarian, Kirk"]
[WhiteFideId "1112848"]
[BlackFideId "30908604"]
[WhiteElo "2640"]
[BlackElo "2760"]
[Result "1-0"]
[Round "10"]
[TimeControl "180+1"]
[Date "2023.08.22"]
[WhiteClock "0:00:04"]
[BlackClock "0:00:08"]
[Board "25"]

1. e4 {[%clk 0:03:00]}  c5 {[%clk 0:02:59]} 2. Nf3 {[%clk 0:03:00]}  a6 {[%clk 0:02:59]} 3. g3 {[%clk 0:02:58]}  g6 {[%clk 0:02:58]} 4. Bg2 {[%clk 0:02:58]}  Bg7 {[%clk 0:02:59]} 5. O-O {[%clk 0:02:57]}  d6 {[%clk 0:02:57]} 6. c3 {[%clk 0:02:56]}  Nf6 {[%clk 0:02:58]} 7. Re1 {[%clk 0:02:55]}  O-O {[%clk 0:02:55]} 8. d4 {[%clk 0:02:54]}  cxd4 {[%clk 0:02:56]} 9. cxd4 {[%clk 0:02:54]}  Nc6 {[%clk 0:02:56]} 10. Nc3 {[%clk 0:02:48]}  Bg4 {[%clk 0:02:56]} 11. Be3 {[%clk 0:02:45]}  Rc8 {[%clk 0:02:54]} 12. h3 {[%clk 0:02:44]}  Bxf3 {[%clk 0:02:52]} 13. Bxf3 {[%clk 0:02:43]}  Nd7 {[%clk 0:02:52]} 14. Rc1 {[%clk 0:02:38]}  Nb6 {[%clk 0:02:51]} 15. b3 {[%clk 0:02:36]}  Nd7 {[%clk 0:02:49]} 16. Qd2 {[%clk 0:02:27]}  e6 {[%clk 0:02:44]} 17. Bg2 {[%clk 0:02:22]}  Qa5 {[%clk 0:02:22]} 18. Red1 {[%clk 0:02:05]}  Rfd8 {[%clk 0:02:10]} 19. f4 {[%clk 0:01:53]}  e5 {[%clk 0:02:05]} 20. fxe5 {[%clk 0:01:52]}  dxe5 {[%clk 0:02:05]} 21. d5 {[%clk 0:01:52]}  Nd4 {[%clk 0:02:03]} 22. Kh2 {[%clk 0:01:49]}  Rc7 {[%clk 0:01:53]} 23. Qb2 {[%clk 0:01:41]}  Rdc8 {[%clk 0:01:47]} 24. b4 {[%clk 0:01:40]}  Qb6 {[%clk 0:01:40]} 25. Rf1 {[%clk 0:01:31]}  Qd6 {[%clk 0:01:33]} 26. a3 {[%clk 0:01:16]}  Nb6 {[%clk 0:01:29]} 27. Qf2 {[%clk 0:01:14]}  Nc4 {[%clk 0:01:00]} 28. Na4 {[%clk 0:01:06]}  Nxe3 {[%clk 0:00:46]} 29. Qxe3 {[%clk 0:01:02]}  b6 {[%clk 0:00:41]} 30. Rxc7 {[%clk 0:00:58]}  Rxc7 {[%clk 0:00:41]} 31. Rc1 {[%clk 0:00:53]}  h5 {[%clk 0:00:32]} 32. Nb2 {[%clk 0:00:47]}  Qd8 {[%clk 0:00:20]} 33. Rxc7 {[%clk 0:00:44]}  Qxc7 {[%clk 0:00:21]} 34. Qd3 {[%clk 0:00:44]}  b5 {[%clk 0:00:21]} 35. Qd2 {[%clk 0:00:27]}  Bf6 {[%clk 0:00:18]} 36. Nd3 {[%clk 0:00:26]}  h4 {[%clk 0:00:18]} 37. gxh4 {[%clk 0:00:24]}  Bxh4 {[%clk 0:00:19]} 38. Nc5 {[%clk 0:00:24]}  a5 {[%clk 0:00:18]} 39. Qd3 {[%clk 0:00:22]}  axb4 {[%clk 0:00:17]} 40. axb4 {[%clk 0:00:23]}  Bg5 {[%clk 0:00:16]} 41. Qa3 {[%clk 0:00:22]}  Bf4+ {[%clk 0:00:14]} 42. Kh1 {[%clk 0:00:22]}  Qd8 {[%clk 0:00:15]} 43. Qa1 {[%clk 0:00:17]}  Kg7 {[%clk 0:00:13]} 44. Qc3 {[%clk 0:00:15]}  Qh4 {[%clk 0:00:12]} 45. d6 {[%clk 0:00:12]}  Qd8 {[%clk 0:00:07]} 46. d7 {[%clk 0:00:12]}  Bg5 {[%clk 0:00:07]} 47. Qa3 {[%clk 0:00:10]}  Be7 {[%clk 0:00:05]} 48. Qa5 {[%clk 0:00:10]}  Qxa5 {[%clk 0:00:02]} 49. bxa5 {[%clk 0:00:09]}  b4 {[%clk 0:00:03]} 50. Bf1 {[%clk 0:00:06]}  Nc6 {[%clk 0:00:02]} 51. Nb7 {[%clk 0:00:05]}  Na7 {[%clk 0:00:02]} 52. d8=Q {[%clk 0:00:04]}  Bxd8 {[%clk 0:00:03]} 53. Nxd8 {[%clk 0:00:04]}  b3 {[%clk 0:00:03]} 54. Bd3 {[%clk 0:00:04]}  b2 {[%clk 0:00:04]} 55. Nb7 {[%clk 0:00:04]}  Kf6 {[%clk 0:00:05]} 56. Nc5 {[%clk 0:00:04]}  Ke7 {[%clk 0:00:05]} 57. Na4 {[%clk 0:00:04]}  Kd6 {[%clk 0:00:06]} 58. Nxb2 {[%clk 0:00:04]}  Kc5 {[%clk 0:00:07]} 59. Kg2 {[%clk 0:00:02]}  Kd4 {[%clk 0:00:08]} 60. Kf3 {[%clk 0:00:03]}  Kc3 {[%clk 0:00:09]} 61. Bc4 {[%clk 0:00:01]}  f6 {[%clk 0:00:06]} 62. Bf7 {[%clk 0:00:01]}  Kxb2 {[%clk 0:00:06]} 63. Bxg6 {[%clk 0:00:02]}  Kc3 {[%clk 0:00:06]} 64. h4 {[%clk 0:00:02]}  Nc6 {[%clk 0:00:07]} 65. h5 {[%clk 0:00:03]}  Nd4+ {[%clk 0:00:05]} 66. Kg4 {[%clk 0:00:03]}  Ne6 {[%clk 0:00:06]} 67. Kf5 {[%clk 0:00:03]}  Nf8 {[%clk 0:00:07]} 68. Kxf6 {[%clk 0:00:04]}  Kb4 {[%clk 0:00:07]} 69. Kf7 {[%clk 0:00:04]}  Nd7 {[%clk 0:00:07]} 70. Ke7 {[%clk 0:00:04]}  Kxa5 {[%clk 0:00:08]} 71. Kxd7 {[%clk 0:00:04]} 1-0


[Site "https://www.chess.com"]

[Event "Titled Tuesday Blitz August 22 Late 2023"]
[White "Kuzmicz, Krystian"]
[Black "Papayan, Oleg"]
[WhiteFideId "1119125"]
[BlackFideId "4193911"]
[WhiteElo "2741"]
[BlackElo "2620"]
[Result "1/2-1/2"]
[Round "10"]
[TimeControl "180+1"]
[Date "2023.08.22"]
[WhiteClock "0:00:26"]
[BlackClock "0:00:32"]
[Board "27"]

1. e4 {[%clk 0:03:00]}  d5 {[%clk 0:02:56]} 2. exd5 {[%clk 0:03:00]}  Qxd5 {[%clk 0:02:57]} 3. Nf3 {[%clk 0:03:00]}  Nf6 {[%clk 0:02:57]} 4. d4 {[%clk 0:03:00]}  c6 {[%clk 0:02:56]} 5. Be2 {[%clk 0:03:00]}  Bf5 {[%clk 0:02:56]} 6. O-O {[%clk 0:03:01]}  e6 {[%clk 0:02:57]} 7. c4 {[%clk 0:03:01]}  Qd8 {[%clk 0:02:57]} 8. Nc3 {[%clk 0:03:01]}  Be7 {[%clk 0:02:57]} 9. Be3 {[%clk 0:03:01]}  O-O {[%clk 0:02:57]} 10. h3 {[%clk 0:02:59]}  Nbd7 {[%clk 0:02:58]} 11. Rc1 {[%clk 0:02:54]}  Ne4 {[%clk 0:02:57]} 12. Nxe4 {[%clk 0:02:36]}  Bxe4 {[%clk 0:02:58]} 13. Nd2 {[%clk 0:02:29]}  Bg6 {[%clk 0:02:58]} 14. Bf3 {[%clk 0:02:27]}  Nf6 {[%clk 0:02:58]} 15. Re1 {[%clk 0:02:24]}  Qa5 {[%clk 0:02:57]} 16. a3 {[%clk 0:02:22]}  Rfd8 {[%clk 0:02:57]} 17. Qe2 {[%clk 0:02:13]}  Rd7 {[%clk 0:02:48]} 18. Rc3 {[%clk 0:01:40]}  Rad8 {[%clk 0:02:43]} 19. b4 {[%clk 0:01:39]}  Qc7 {[%clk 0:02:43]} 20. Rec1 {[%clk 0:01:34]}  a5 {[%clk 0:02:40]} 21. Rb3 {[%clk 0:01:25]}  axb4 {[%clk 0:02:40]} 22. axb4 {[%clk 0:01:25]}  Ra8 {[%clk 0:02:40]} 23. b5 {[%clk 0:01:21]}  cxb5 {[%clk 0:02:32]} 24. Rxb5 {[%clk 0:01:21]}  Nd5 {[%clk 0:02:06]} 25. Qf1 {[%clk 0:01:09]}  Nxe3 {[%clk 0:02:04]} 26. fxe3 {[%clk 0:01:10]}  Ra7 {[%clk 0:01:45]} 27. Ne4 {[%clk 0:01:03]}  Rd8 {[%clk 0:01:39]} 28. c5 {[%clk 0:00:55]}  h6 {[%clk 0:01:36]} 29. Qf2 {[%clk 0:00:47]}  e5 {[%clk 0:01:36]} 30. d5 {[%clk 0:00:44]}  Rxd5 {[%clk 0:01:32]} 31. Nf6+ {[%clk 0:00:44]}  Bxf6 {[%clk 0:01:32]} 32. Bxd5 {[%clk 0:00:44]}  e4 {[%clk 0:01:33]} 33. Qf4 {[%clk 0:00:38]}  Be5 {[%clk 0:01:28]} 34. Qg4 {[%clk 0:00:38]}  Kh8 {[%clk 0:01:02]} 35. Bxe4 {[%clk 0:00:35]}  Ra4 {[%clk 0:01:03]} 36. c6 {[%clk 0:00:20]}  Rxe4 {[%clk 0:00:42]} 37. Rxb7 {[%clk 0:00:19]}  Rxg4 {[%clk 0:00:18]} 38. Rxc7 {[%clk 0:00:18]}  Rxg2+ {[%clk 0:00:16]} 39. Kxg2 {[%clk 0:00:17]}  Be4+ {[%clk 0:00:16]} 40. Kf2 {[%clk 0:00:16]}  Bxc7 {[%clk 0:00:17]} 41. Rd1 {[%clk 0:00:16]}  Bxc6 {[%clk 0:00:15]} 42. Rc1 {[%clk 0:00:16]}  Be5 {[%clk 0:00:06]} 43. Rxc6 {[%clk 0:00:15]}  Kh7 {[%clk 0:00:05]} 44. Kf3 {[%clk 0:00:15]}  f6 {[%clk 0:00:06]} 45. h4 {[%clk 0:00:14]}  Kg6 {[%clk 0:00:06]} 46. Kg4 {[%clk 0:00:14]}  h5+ {[%clk 0:00:06]} 47. Kf3 {[%clk 0:00:14]}  Kf5 {[%clk 0:00:06]} 48. e4+ {[%clk 0:00:14]}  Kg6 {[%clk 0:00:06]} 49. Rc8 {[%clk 0:00:14]}  Kf7 {[%clk 0:00:05]} 50. Rh8 {[%clk 0:00:14]}  Kg6 {[%clk 0:00:05]} 51. Ke2 {[%clk 0:00:14]}  Bg3 {[%clk 0:00:05]} 52. Kf3 {[%clk 0:00:14]}  Bxh4 {[%clk 0:00:05]} 53. Re8 {[%clk 0:00:13]}  Bg5 {[%clk 0:00:04]} 54. e5 {[%clk 0:00:13]}  fxe5 {[%clk 0:00:05]} 55. Rxe5 {[%clk 0:00:13]}  Bf6 {[%clk 0:00:05]} 56. Rb5 {[%clk 0:00:13]}  Kh6 {[%clk 0:00:06]} 57. Rb7 {[%clk 0:00:11]}  g6 {[%clk 0:00:06]} 58. Rb6 {[%clk 0:00:11]}  Kg5 {[%clk 0:00:06]} 59. Rb5+ {[%clk 0:00:12]}  Kh6 {[%clk 0:00:07]} 60. Rb6 {[%clk 0:00:12]}  Bc3 {[%clk 0:00:07]} 61. Rxg6+ {[%clk 0:00:10]}  Kxg6 {[%clk 0:00:03]} 62. Kg2 {[%clk 0:00:11]}  Kg5 {[%clk 0:00:01]} 63. Kh1 {[%clk 0:00:12]}  Kg6 {[%clk 0:00:02]} 64. Kh2 {[%clk 0:00:12]}  Kf5 {[%clk 0:00:03]} 65. Kh1 {[%clk 0:00:12]}  Kg4 {[%clk 0:00:04]} 66. Kh2 {[%clk 0:00:13]}  h4 {[%clk 0:00:05]} 67. Kh1 {[%clk 0:00:13]}  h3 {[%clk 0:00:06]} 68. Kh2 {[%clk 0:00:14]}  Kh4 {[%clk 0:00:07]} 69. Kh1 {[%clk 0:00:14]}  Bf6 {[%clk 0:00:08]} 70. Kh2 {[%clk 0:00:15]}  Bg7 {[%clk 0:00:08]} 71. Kh1 {[%clk 0:00:16]}  Bf8 {[%clk 0:00:09]} 72. Kh2 {[%clk 0:00:16]}  Be7 {[%clk 0:00:10]} 73. Kh1 {[%clk 0:00:17]}  Bd6 {[%clk 0:00:11]} 74. Kg1 {[%clk 0:00:17]}  Bc7 {[%clk 0:00:12]} 75. Kh1 {[%clk 0:00:18]}  Bb8 {[%clk 0:00:13]} 76. Kg1 {[%clk 0:00:18]}  Ba7+ {[%clk 0:00:14]} 77. Kh1 {[%clk 0:00:19]}  Bb6 {[%clk 0:00:15]} 78. Kh2 {[%clk 0:00:20]}  Ba5 {[%clk 0:00:16]} 79. Kh1 {[%clk 0:00:20]}  Bb4 {[%clk 0:00:17]} 80. Kh2 {[%clk 0:00:21]}  Ba3 {[%clk 0:00:17]} 81. Kh1 {[%clk 0:00:21]}  Bb2 {[%clk 0:00:18]} 82. Kh2 {[%clk 0:00:21]}  Ba1 {[%clk 0:00:19]} 83. Kh1 {[%clk 0:00:22]}  Kg4 {[%clk 0:00:20]} 84. Kh2 {[%clk 0:00:23]}  Bh8 {[%clk 0:00:18]} 85. Kh1 {[%clk 0:00:23]}  Kh4 {[%clk 0:00:18]} 86. Kh2 {[%clk 0:00:23]}  Bg7 {[%clk 0:00:19]} 87. Kh1 {[%clk 0:00:24]}  Bh6 {[%clk 0:00:19]} 88. Kh2 {[%clk 0:00:19]}  Bf4+ {[%clk 0:00:17]} 89. Kh1 {[%clk 0:00:20]}  Kg3 {[%clk 0:00:18]} 90. Kg1 {[%clk 0:00:20]}  Be3+ {[%clk 0:00:18]} 91. Kh1 {[%clk 0:00:20]}  Bh6 {[%clk 0:00:17]} 92. Kg1 {[%clk 0:00:20]}  Bf8 {[%clk 0:00:18]} 93. Kh1 {[%clk 0:00:21]}  Ba3 {[%clk 0:00:19]} 94. Kg1 {[%clk 0:00:21]}  Bc1 {[%clk 0:00:20]} 95. Kh1 {[%clk 0:00:21]}  Bh6 {[%clk 0:00:21]} 96. Kg1 {[%clk 0:00:22]}  Kh4 {[%clk 0:00:22]} 97. Kh1 {[%clk 0:00:22]}  Kg4 {[%clk 0:00:23]} 98. Kh2 {[%clk 0:00:23]}  Bf4+ {[%clk 0:00:23]} 99. Kh1 {[%clk 0:00:23]}  Bg3 {[%clk 0:00:22]} 100. Kg1 {[%clk 0:00:23]}  Kh4 {[%clk 0:00:23]} 101. Kh1 {[%clk 0:00:24]}  Kg5 {[%clk 0:00:23]} 102. Kg1 {[%clk 0:00:24]}  Bh2+ {[%clk 0:00:24]} 103. Kxh2 {[%clk 0:00:22]}  Kg4 {[%clk 0:00:24]} 104. Kh1 {[%clk 0:00:23]}  Kh5 {[%clk 0:00:24]} 105. Kh2 {[%clk 0:00:23]}  Kh4 {[%clk 0:00:25]} 106. Kh1 {[%clk 0:00:23]}  Kg4 {[%clk 0:00:26]} 107. Kh2 {[%clk 0:00:24]}  Kg5 {[%clk 0:00:27]} 108. Kh1 {[%clk 0:00:24]}  Kh5 {[%clk 0:00:28]} 109. Kh2 {[%clk 0:00:24]}  Kh4 {[%clk 0:00:29]} 110. Kh1 {[%clk 0:00:25]}  Kg3 {[%clk 0:00:30]} 111. Kg1 {[%clk 0:00:25]}  Kf4 {[%clk 0:00:30]} 112. Kh1 {[%clk 0:00:25]}  Kg4 {[%clk 0:00:31]} 113. Kh2 {[%clk 0:00:26]}  Kh4 {[%clk 0:00:32]} 1/2-1/2


[Site "https://www.chess.com"]

[Event "Titled Tuesday Blitz August 22 Late 2023"]
[White "Martinez Ramirez, Lennis"]
[Black "Veiga, Jose Francisco R P Neves"]
[WhiteFideId "3509079"]
[BlackFideId "1930087"]
[WhiteElo "2736"]
[BlackElo "2608"]
[Result "1-0"]
[Round "10"]
[TimeControl "180+1"]
[Date "2023.08.22"]
[WhiteClock "0:02:08"]
[BlackClock "0:00:33"]
[Board "28"]

1. Nf3 {[%clk 0:03:00]}  c5 {[%clk 0:02:44]} 2. c4 {[%clk 0:03:01]}  Nc6 {[%clk 0:02:43]} 3. g3 {[%clk 0:03:01]}  g6 {[%clk 0:02:43]} 4. Bg2 {[%clk 0:03:00]}  Bg7 {[%clk 0:02:44]} 5. O-O {[%clk 0:03:01]}  e5 {[%clk 0:02:44]} 6. Nc3 {[%clk 0:03:01]}  Nge7 {[%clk 0:02:43]} 7. d3 {[%clk 0:03:01]}  O-O {[%clk 0:02:42]} 8. Bg5 {[%clk 0:03:02]}  d6 {[%clk 0:02:30]} 9. a3 {[%clk 0:03:01]}  Be6 {[%clk 0:02:13]} 10. Bxe7 {[%clk 0:02:56]}  Qxe7 {[%clk 0:02:11]} 11. Ne1 {[%clk 0:02:56]}  f5 {[%clk 0:02:05]} 12. Nc2 {[%clk 0:02:55]}  f4 {[%clk 0:01:48]} 13. Rb1 {[%clk 0:02:38]}  Nd4 {[%clk 0:01:34]} 14. Nxd4 {[%clk 0:02:37]}  cxd4 {[%clk 0:01:35]} 15. Nd5 {[%clk 0:02:37]}  Qf7 {[%clk 0:01:36]} 16. gxf4 {[%clk 0:02:34]}  exf4 {[%clk 0:01:29]} 17. Bf3 {[%clk 0:02:35]}  g5 {[%clk 0:01:28]} 18. Kh1 {[%clk 0:02:34]}  g4 {[%clk 0:01:25]} 19. Be4 {[%clk 0:02:34]}  Be5 {[%clk 0:01:23]} 20. f3 {[%clk 0:02:34]}  Kh8 {[%clk 0:01:20]} 21. fxg4 {[%clk 0:02:29]}  Bxg4 {[%clk 0:01:20]} 22. Bf3 {[%clk 0:02:29]}  Bh3 {[%clk 0:01:19]} 23. Rg1 {[%clk 0:02:29]}  Rg8 {[%clk 0:01:16]} 24. Qa4 {[%clk 0:02:25]}  a6 {[%clk 0:01:06]} 25. Qa5 {[%clk 0:02:18]}  Rxg1+ {[%clk 0:01:04]} 26. Rxg1 {[%clk 0:02:19]}  Rg8 {[%clk 0:01:04]} 27. Rxg8+ {[%clk 0:02:18]}  Qxg8 {[%clk 0:01:05]} 28. Qc7 {[%clk 0:02:13]}  Qg5 {[%clk 0:01:00]} 29. Qb8+ {[%clk 0:02:09]}  Kg7 {[%clk 0:00:59]} 30. Qxb7+ {[%clk 0:02:09]}  Kh6 {[%clk 0:00:33]} 31. Qe7 {[%clk 0:02:08]} 1-0


[Site "https://www.chess.com"]

[Event "Titled Tuesday Blitz August 22 Late 2023"]
[White "Guerra Tulcan, Lenin"]
[Black "Diaz Perez, Michel Alejandro"]
[WhiteFideId "3601382"]
[BlackFideId "3517179"]
[WhiteElo "2570"]
[BlackElo "2697"]
[Result "1-0"]
[Round "10"]
[TimeControl "180+1"]
[Date "2023.08.22"]
[WhiteClock "0:00:11"]
[BlackClock "0:00:12"]
[Board "31"]

1. e4 {[%clk 0:03:00]}  e6 {[%clk 0:02:58]} 2. d4 {[%clk 0:03:00]}  d5 {[%clk 0:02:59]} 3. Nd2 {[%clk 0:03:00]}  dxe4 {[%clk 0:02:58]} 4. Nxe4 {[%clk 0:03:00]}  Bd7 {[%clk 0:02:59]} 5. Nf3 {[%clk 0:02:55]}  Bc6 {[%clk 0:02:59]} 6. Bd3 {[%clk 0:02:55]}  Nd7 {[%clk 0:02:57]} 7. O-O {[%clk 0:02:53]}  Bxe4 {[%clk 0:02:52]} 8. Bxe4 {[%clk 0:02:53]}  c6 {[%clk 0:02:53]} 9. c3 {[%clk 0:02:52]}  Ngf6 {[%clk 0:02:54]} 10. Bc2 {[%clk 0:02:52]}  Bd6 {[%clk 0:02:54]} 11. Qe2 {[%clk 0:02:51]}  Qc7 {[%clk 0:02:55]} 12. b4 {[%clk 0:02:45]}  h6 {[%clk 0:02:51]} 13. Re1 {[%clk 0:02:41]}  Bf4 {[%clk 0:02:43]} 14. Bb2 {[%clk 0:02:39]}  a5 {[%clk 0:02:35]} 15. a3 {[%clk 0:02:38]}  O-O {[%clk 0:02:34]} 16. c4 {[%clk 0:02:38]}  b6 {[%clk 0:02:25]} 17. Ne5 {[%clk 0:02:31]}  Rfd8 {[%clk 0:02:08]} 18. g3 {[%clk 0:02:28]}  Bxe5 {[%clk 0:02:08]} 19. dxe5 {[%clk 0:02:27]}  Ne8 {[%clk 0:02:09]} 20. Qg4 {[%clk 0:01:42]}  axb4 {[%clk 0:02:02]} 21. axb4 {[%clk 0:01:42]}  Rxa1 {[%clk 0:02:02]} 22. Bxa1 {[%clk 0:01:42]}  Ra8 {[%clk 0:01:57]} 23. Bd4 {[%clk 0:01:35]}  c5 {[%clk 0:01:52]} 24. Qe4 {[%clk 0:01:26]}  Ra2 {[%clk 0:01:38]} 25. bxc5 {[%clk 0:01:22]}  Nxc5 {[%clk 0:01:38]} 26. Qh7+ {[%clk 0:01:19]}  Kf8 {[%clk 0:01:37]} 27. Bb1 {[%clk 0:01:15]}  Ra4 {[%clk 0:01:31]} 28. Qc2 {[%clk 0:00:59]}  Ra8 {[%clk 0:01:24]} 29. Be3 {[%clk 0:00:43]}  Qxe5 {[%clk 0:01:09]} 30. Rd1 {[%clk 0:00:40]}  Qc7 {[%clk 0:01:07]} 31. Qh7 {[%clk 0:00:19]}  Ra4 {[%clk 0:00:52]} 32. Bf4 {[%clk 0:00:16]}  e5 {[%clk 0:00:52]} 33. Re1 {[%clk 0:00:16]}  f6 {[%clk 0:00:47]} 34. Bg6 {[%clk 0:00:15]}  Qd7 {[%clk 0:00:32]} 35. Bxe5 {[%clk 0:00:10]}  fxe5 {[%clk 0:00:31]} 36. Rxe5 {[%clk 0:00:11]}  Ra1+ {[%clk 0:00:30]} 37. Kg2 {[%clk 0:00:11]}  Ne6 {[%clk 0:00:19]} 38. Qh8+ {[%clk 0:00:11]}  Ke7 {[%clk 0:00:19]} 39. Bxe8 {[%clk 0:00:11]}  Qb7+ {[%clk 0:00:13]} 40. Kh3 {[%clk 0:00:10]}  Qf3 {[%clk 0:00:12]} 41. Qxg7+ {[%clk 0:00:10]}  Kd6 {[%clk 0:00:09]} 42. Rxe6+ {[%clk 0:00:07]}  Kxe6 {[%clk 0:00:09]} 43. Qxa1 {[%clk 0:00:08]}  Qxf2 {[%clk 0:00:08]} 44. Qc3 {[%clk 0:00:04]}  Ke7 {[%clk 0:00:07]} 45. Bh5 {[%clk 0:00:03]}  Kd6 {[%clk 0:00:07]} 46. Qd3+ {[%clk 0:00:02]}  Kc5 {[%clk 0:00:07]} 47. Qd5+ {[%clk 0:00:03]}  Kb4 {[%clk 0:00:07]} 48. Bf7 {[%clk 0:00:03]}  Kc3 {[%clk 0:00:07]} 49. Kg4 {[%clk 0:00:04]}  Qxh2 {[%clk 0:00:07]} 50. Qe5+ {[%clk 0:00:04]}  Kb4 {[%clk 0:00:04]} 51. Qd6+ {[%clk 0:00:04]}  Kc3 {[%clk 0:00:05]} 52. Qc6 {[%clk 0:00:04]}  Qe2+ {[%clk 0:00:05]} 53. Qf3+ {[%clk 0:00:03]}  Qxf3+ {[%clk 0:00:04]} 54. Kxf3 {[%clk 0:00:04]}  Kd4 {[%clk 0:00:04]} 55. Kf4 {[%clk 0:00:04]}  Kc5 {[%clk 0:00:04]} 56. Ke5 {[%clk 0:00:04]}  b5 {[%clk 0:00:05]} 57. cxb5 {[%clk 0:00:04]}  Kxb5 {[%clk 0:00:06]} 58. Kf6 {[%clk 0:00:04]}  Kc5 {[%clk 0:00:07]} 59. Kg6 {[%clk 0:00:05]}  Kd6 {[%clk 0:00:08]} 60. Kxh6 {[%clk 0:00:05]}  Ke5 {[%clk 0:00:08]} 61. Bh5 {[%clk 0:00:06]}  Kf6 {[%clk 0:00:08]} 62. g4 {[%clk 0:00:07]}  Ke7 {[%clk 0:00:09]} 63. Kg7 {[%clk 0:00:07]}  Ke6 {[%clk 0:00:09]} 64. g5 {[%clk 0:00:08]}  Ke5 {[%clk 0:00:09]} 65. g6 {[%clk 0:00:09]}  Kf4 {[%clk 0:00:10]} 66. Kf7 {[%clk 0:00:08]}  Kg5 {[%clk 0:00:11]} 67. g7 {[%clk 0:00:09]}  Kxh5 {[%clk 0:00:11]} 68. g8=Q {[%clk 0:00:09]}  Kh4 {[%clk 0:00:12]} 69. Kf6 {[%clk 0:00:09]}  Kh3 {[%clk 0:00:13]} 70. Kf5 {[%clk 0:00:10]}  Kh2 {[%clk 0:00:14]} 71. Kf4 {[%clk 0:00:10]}  Kh1 {[%clk 0:00:12]} 72. Kf3 {[%clk 0:00:11]} 1-0


[Site "https://www.chess.com"]

[Event "Titled Tuesday Blitz August 22 Late 2023"]
[White "Salimova, Nurgyul"]
[Black "Shapiro, Viktor"]
[WhiteFideId "2915138"]
[BlackFideId "4175700"]
[WhiteElo "2695"]
[BlackElo "2562"]
[Result "1-0"]
[Round "10"]
[TimeControl "180+1"]
[Date "2023.08.22"]
[WhiteClock "0:00:50"]
[BlackClock "0:00:15"]
[Board "32"]

1. d4 {[%clk 0:03:00]}  Nf6 {[%clk 0:03:00]} 2. Nf3 {[%clk 0:03:01]}  e6 {[%clk 0:03:00]} 3. Bf4 {[%clk 0:03:01]}  c5 {[%clk 0:02:59]} 4. e3 {[%clk 0:03:02]}  a6 {[%clk 0:02:57]} 5. Nbd2 {[%clk 0:03:00]}  b5 {[%clk 0:02:56]} 6. a4 {[%clk 0:03:01]}  b4 {[%clk 0:02:37]} 7. Bd3 {[%clk 0:03:00]}  Bb7 {[%clk 0:02:36]} 8. O-O {[%clk 0:03:01]}  d5 {[%clk 0:02:31]} 9. Re1 {[%clk 0:02:50]}  c4 {[%clk 0:02:30]} 10. Bf1 {[%clk 0:02:50]}  Nbd7 {[%clk 0:02:29]} 11. h3 {[%clk 0:02:44]}  Be7 {[%clk 0:02:27]} 12. Ne5 {[%clk 0:02:39]}  O-O {[%clk 0:02:25]} 13. Qf3 {[%clk 0:02:25]}  Rc8 {[%clk 0:02:20]} 14. Nexc4 {[%clk 0:02:21]}  Ba8 {[%clk 0:02:09]} 15. Ne5 {[%clk 0:02:13]}  Rxc2 {[%clk 0:02:08]} 16. Rad1 {[%clk 0:02:05]}  Qa5 {[%clk 0:01:52]} 17. b3 {[%clk 0:02:03]}  Rfc8 {[%clk 0:01:47]} 18. Bd3 {[%clk 0:02:00]}  R2c3 {[%clk 0:01:46]} 19. Bb1 {[%clk 0:01:59]}  Qd8 {[%clk 0:01:43]} 20. g4 {[%clk 0:01:59]}  Nxe5 {[%clk 0:01:30]} 21. Bxe5 {[%clk 0:01:39]}  Nd7 {[%clk 0:01:23]} 22. Bg3 {[%clk 0:01:40]}  Nf8 {[%clk 0:01:15]} 23. Qe2 {[%clk 0:01:24]}  Bb7 {[%clk 0:01:04]} 24. Kg2 {[%clk 0:01:22]}  a5 {[%clk 0:00:56]} 25. h4 {[%clk 0:01:11]}  R8c6 {[%clk 0:00:55]} 26. h5 {[%clk 0:01:05]}  Ba6 {[%clk 0:00:55]} 27. Qf3 {[%clk 0:01:05]}  Bd3 {[%clk 0:00:51]} 28. Bxd3 {[%clk 0:00:57]}  Rxd3 {[%clk 0:00:51]} 29. Nc4 {[%clk 0:00:58]}  Rxd1 {[%clk 0:00:32]} 30. Rxd1 {[%clk 0:00:59]}  Rxc4 {[%clk 0:00:29]} 31. bxc4 {[%clk 0:00:59]}  dxc4 {[%clk 0:00:30]} 32. d5 {[%clk 0:00:59]}  exd5 {[%clk 0:00:20]} 33. Rxd5 {[%clk 0:01:00]}  Qc8 {[%clk 0:00:20]} 34. Qe4 {[%clk 0:00:57]}  Ne6 {[%clk 0:00:19]} 35. Rxa5 {[%clk 0:00:54]}  Bf8 {[%clk 0:00:18]} 36. Ra8 {[%clk 0:00:50]}  Qc7 {[%clk 0:00:15]} 37. Bxc7 {[%clk 0:00:50]} 1-0


[Site "https://www.chess.com"]

[Event "Titled Tuesday Blitz August 22 Late 2023"]
[White "Arias, Juan Cruz"]
[Black "Loay, Sameer"]
[WhiteFideId "118540"]
[BlackFideId "8104239"]
[WhiteElo "2691"]
[BlackElo "2549"]
[Result "1-0"]
[Round "10"]
[TimeControl "180+1"]
[Date "2023.08.22"]
[WhiteClock "0:01:36"]
[BlackClock "0:01:10"]
[Board "33"]

1. d4 {[%clk 0:03:00]}  Nf6 {[%clk 0:03:00]} 2. Nf3 {[%clk 0:03:01]}  g6 {[%clk 0:03:00]} 3. Nbd2 {[%clk 0:02:59]}  d5 {[%clk 0:02:59]} 4. e3 {[%clk 0:02:58]}  Bg7 {[%clk 0:02:59]} 5. b4 {[%clk 0:02:58]}  O-O {[%clk 0:02:57]} 6. Be2 {[%clk 0:02:58]}  a5 {[%clk 0:02:56]} 7. b5 {[%clk 0:02:56]}  c6 {[%clk 0:02:56]} 8. bxc6 {[%clk 0:02:53]}  Nxc6 {[%clk 0:02:55]} 9. O-O {[%clk 0:02:53]}  Ne4 {[%clk 0:02:56]} 10. Nxe4 {[%clk 0:02:50]}  dxe4 {[%clk 0:02:56]} 11. Nd2 {[%clk 0:02:50]}  f5 {[%clk 0:02:55]} 12. Ba3 {[%clk 0:02:49]}  Re8 {[%clk 0:02:48]} 13. Rb1 {[%clk 0:02:47]}  e5 {[%clk 0:02:47]} 14. d5 {[%clk 0:02:46]}  Nb4 {[%clk 0:02:23]} 15. Bxb4 {[%clk 0:02:43]}  axb4 {[%clk 0:02:24]} 16. Rxb4 {[%clk 0:02:38]}  Rxa2 {[%clk 0:02:24]} 17. Qb1 {[%clk 0:02:36]}  Ra8 {[%clk 0:02:23]} 18. Nc4 {[%clk 0:02:32]}  Kh8 {[%clk 0:02:14]} 19. Nb6 {[%clk 0:02:30]}  Ra5 {[%clk 0:02:13]} 20. Nxc8 {[%clk 0:02:24]}  Qxc8 {[%clk 0:02:13]} 21. Rxb7 {[%clk 0:02:25]}  Rxd5 {[%clk 0:02:08]} 22. c4 {[%clk 0:02:15]}  Rd7 {[%clk 0:02:04]} 23. Rxd7 {[%clk 0:02:11]}  Qxd7 {[%clk 0:02:05]} 24. c5 {[%clk 0:02:11]}  Qd5 {[%clk 0:01:59]} 25. Rc1 {[%clk 0:02:05]}  Rc8 {[%clk 0:01:59]} 26. c6 {[%clk 0:01:59]}  Bf8 {[%clk 0:01:41]} 27. c7 {[%clk 0:01:51]}  Bd6 {[%clk 0:01:39]} 28. Ba6 {[%clk 0:01:50]}  Rxc7 {[%clk 0:01:30]} 29. Qb8+ {[%clk 0:01:50]}  Kg7 {[%clk 0:01:29]} 30. Rxc7+ {[%clk 0:01:49]}  Bxc7 {[%clk 0:01:30]} 31. Qxc7+ {[%clk 0:01:50]}  Kh6 {[%clk 0:01:31]} 32. Bf1 {[%clk 0:01:47]}  f4 {[%clk 0:01:31]} 33. Qe7 {[%clk 0:01:44]}  g5 {[%clk 0:01:18]} 34. Qf6+ {[%clk 0:01:41]}  Kh5 {[%clk 0:01:17]} 35. Be2+ {[%clk 0:01:41]}  g4 {[%clk 0:01:11]} 36. Qf5+ {[%clk 0:01:39]}  Kh6 {[%clk 0:01:11]} 37. exf4 {[%clk 0:01:36]}  Qd2 {[%clk 0:01:10]} 38. Qg5# {[%clk 0:01:36]} 1-0


[Site "https://www.chess.com"]